[Event "ESTCC 65 2019"]
[Site "Mali Losinj"]
[Date "2019.09.19"]
[Round "2.1"]
[White "Balashov, Yuri S"]
[Black "Huss, Andreas"]
[Result "1-0"]
[ECO "E43"]
[WhiteElo "2466"]
[BlackElo "2261"]
[Annotator "ChessBase"]
[PlyCount "137"]
[EventDate "2019.09.18"]
[EventType "team-tourn"]
[EventCountry "CRO"]
[SourceTitle "playchess.com"]
[Source "ChessBase"]
[SourceQuality "1"]
[WhiteTeam "Russia"]
[BlackTeam "Switzerland"]
[WhiteTeamCountry "RUS"]
[BlackTeamCountry "SUI"]
[TimeControl "40/5400+30:1800+30"]

1. d4 {[%emt 0:00:30]} e6 {[%emt 0:00:30]} 2. c4 {[%emt 0:00:30]} Nf6 {[%emt 0:00:00]} 3. Nc3 {[%emt 0:00:00]} Bb4 {[%emt 0:00:00]} 4. Nf3 {[%emt 0:00:00]} b6 {[%emt 0:00:30]} 5. e3 {[%emt 0:01:30]} Bb7 {[%emt 0:01:30]} 6. Be2 {[%emt 0:00:30]} O-O {[%emt 0:03:30]} 7. O-O {[%emt 0:00:30]} Bxc3 {[%emt 0:01:30]} 8. bxc3 {[%emt 0:00:30]} d6 {[%emt 0:00:30]} 9. Nd2 {[%emt 0:08:30]} Nbd7 {[%emt 0:06:30]} 10. f3 {[%emt 0:00:30]} e5 {[%emt 0:00:30]} 11. e4 {[%emt 0:04:30]} Nh5 {[%emt 0:04:30]} 12. Re1 {[%emt 0:05:30]} Nf4 {[%emt 0:06:30]} 13. Bf1 {[%emt 0:00:30]} Qg5 {[%emt 0:07:30]} 14. g3 {[%emt 0:06:30]} Ne6 {[%emt 0:05:30]} 15. Bg2 {[%emt 0:16:30]} Qf6 {[%emt 0:04:30]} 16. d5 {[%emt 0:02:30]} Nec5 {[%emt 0:02:30]} 17. Nf1 {[%emt 0:00:30]} a5 {[%emt 0:04:30]} 18. Ne3 {[%emt 0:00:30]} Ba6 {[%emt 0:01:30]} 19. Rb1 {[%emt 0:00:30]} Qd8 {[%emt 0:01:30]} 20. Rb2 {[%emt 0:00:30]} g6 {[%emt 0:01:30]} 21. Bf1 {[%emt 0:03:30]} h5 {[%emt 0:04:30]} 22. Ng2 {[%emt 0:03:30]} Kg7 {[%emt 0:03:30]} 23. Rf2 {[%emt 0:01:30]} Qe8 {[%emt 0:04:30]} 24. Qd2 {[%emt 0:08:30]} Rh8 {[%emt 0:00:30]} 25. Qc2 {[%emt 0:02:30]} Nf6 {[%emt 0:02:30]} 26. Ne3 {[%emt 0:00:30]} Qa4 {[%emt 0:05:30]} 27. Qd2 {[%emt 0:01:30]} Nfd7 {[%emt 0:09:21]} 28. Be2 {[%emt 0:00:30]} Nf6 {[%emt 0:10:38]} 29. Bd1 {[%emt 0:02:30]} Qe8 {[%emt 0:00:52]} 30. Bc2 {[%emt 0:01:30]} Qe7 {[%emt 0:01:13]} 31. h4 {[%emt 0:01:30]} Rag8 {[%emt 0:00:59]} 32. Ba3 {[%emt 0:00:30]} Nfd7 {[%emt 0:00:47]} 33. Ref1 {[%emt 0:03:30]} Kf8 {[%emt 0:00:52]} 34. Bc1 {[%emt 0:04:30]} Ke8 {[%emt 0:00:19]} 35. Ba3 {[%emt 0:00:43]} g5 {[%emt 0:02:55]} 36. Nf5 {[%emt 0:00:31]} Qf6 {[%emt 0:00:01]} 37. hxg5 {[%emt 0:01:38]} Qxg5 {[%emt 0:00:35]} 38. Qe2 {[%emt 0:00:51]} h4 {[%emt 0:00:32]} 39. g4 {[%emt 0:00:49]} h3 {[%emt 0:01:06]} 40. Bc1 {[%emt 0:00:13]} Qg6 {[%emt 0:00:13]} 41. Kh2 {[%emt 0:31:30]} Nf6 {[%emt 0:32:21]} 42. Rg1 {[%emt 0:01:33]} Bc8 {[%emt 0:01:39]} 43. Be3 {[%emt 0:00:00]} Kd8 {[%emt 0:00:00]} 44. Qd1 {[%emt 0:00:00]} Ba6 {[%emt 0:00:00]} 45. Bxc5 {[%emt 0:00:00]} bxc5 {[%emt 0:00:00]} 46. Bd3 {[%emt 0:00:00]} Qg5 {[%emt 0:00:00]} 47. Qc1 {[%emt 0:00:00]} Qxc1 {[%emt 0:00:00]} 48. Rxc1 {[%emt 0:00:00]} Nd7 {[%emt 0:00:00]} 49. Rb2 {[%emt 0:00:00]} Rg6 {[%emt 0:00:00]} 50. Rcb1 {[%emt 0:00:00]} Nb6 {[%emt 0:00:00]} 51. Ne3 {[%emt 0:00:00]} Ke7 {[%emt 0:00:00]} 52. Kg3 {[%emt 0:00:00]} Bc8 {[%emt 0:00:07]} 53. Rh2 {[%emt 0:00:00]} Rgh6 {[%emt 0:02:03]} 54. Bf1 {[%emt 0:00:00]} Kf6 {[%emt 0:00:21]} 55. Rb5 {[%emt 0:00:00]} a4 {[%emt 0:00:28]} 56. Ra5 {[%emt 0:00:00]} Bd7 {[%emt 0:00:52]} 57. Ra7 {[%emt 0:00:00]} Rc8 {[%emt 0:00:55]} 58. Bxh3 {[%emt 0:00:00]} Kg5 {[%emt 0:01:15]} 59. Rb2 {[%emt 0:00:00]} Na8 {[%emt 0:01:31]} 60. Nc2 {[%emt 0:00:00]} Rhh8 {[%emt 0:00:16]} 61. Rab7 {[%emt 0:00:00]} Rhd8 {[%emt 0:00:21]} 62. Na3 {[%emt 0:00:00]} Nb6 {[%emt 0:00:15]} 63. Bf1 {[%emt 0:00:00]} Na8 {[%emt 0:01:09]} 64. Rh2 {[%emt 0:00:00]} Rb8 {[%emt 0:00:35]} 65. Ra7 {[%emt 0:00:00]} Rh8 {[%emt 0:00:16]} 66. Rxh8 {[%emt 0:00:00]} Rxh8 {[%emt 0:00:01]} 67. Nb5 {[%emt 0:00:00]} Nb6 {[%emt 0:02:09]} 68. Rxc7 {[%emt 0:00:12]} Bxb5 {[%emt 0:00:12]} 69. cxb5 {[%emt 0:00:00]} 1-0

[Event "ESTCC 65 2019"]
[Site "Mali Losinj"]
[Date "2019.09.19"]
[Round "2.3"]
[White "Kalegin, Evgenij"]
[Black "Hohler, Peter"]
[Result "1-0"]
[ECO "C90"]
[WhiteElo "2435"]
[BlackElo "2047"]
[Annotator "NA"]
[PlyCount "75"]
[EventDate "2019.09.18"]
[EventType "team-tourn"]
[EventCountry "CRO"]
[SourceTitle "playchess.com"]
[Source "ChessBase"]
[SourceQuality "1"]
[WhiteTeam "Russia"]
[BlackTeam "Switzerland"]
[WhiteTeamCountry "RUS"]
[BlackTeamCountry "SUI"]
[TimeControl "40/5400+30:1800+30"]

1. e4 {[%emt 0:00:30]} e5 {[%emt 0:00:30]} 2. Nf3 {[%emt 0:00:00]} Nc6 {[%emt 0:00:00]} 3. Bb5 {[%emt 0:00:00]} a6 {[%emt 0:00:00]} 4. Ba4 {[%emt 0:00:00]} Nf6 {[%emt 0:00:00]} 5. d3 {[%emt 0:01:00]} b5 {[%emt 0:01:00]} 6. Bb3 {[%emt 0:00:00]} Be7 {[%emt 0:00:30]} 7. O-O {[%emt 0:00:00]} d6 {[%emt 0:00:30]} 8. c3 {[%emt 0:00:30]} O-O {[%emt 0:01:30]} 9. Re1 {[%emt 0:00:30]} Na5 {[%emt 0:04:30]} 10. Bc2 {[%emt 0:00:30]} c5 {[%emt 0:00:30]} 11. Nbd2 {[%emt 0:00:00]} Nc6 {[%emt 0:00:30]} 12. Nf1 {[%emt 0:02:00]} h6 {[%emt 0:02:30]} 13. Ne3 {[%emt 0:03:30]} Re8 {[%emt 0:04:30]} 14. a4 {[%emt 0:05:30]} Bb7 {[%emt 0:06:30]} 15. Bb3 {[%emt 0:05:30]} Bf8 {[%emt 0:03:30]} 16. Ba2 {[%emt 0:07:30]} Qd7 {[%emt 0:03:30]} 17. Nh4 {[%emt 0:07:30]} Kh7 {[%emt 0:33:30]} 18. axb5 {[%emt 0:00:30]} axb5 {[%emt 0:00:30]} 19. Qf3 {[%emt 0:00:30]} Na5 {[%emt 0:01:30]} 20. Bd2 {[%emt 0:00:30]} c4 {[%emt 0:00:30]} 21. Nef5 {[%emt 0:06:30]} d5 {[%emt 0:01:30]} 22. Rad1 {[%emt 0:04:30]} dxe4 {[%emt 0:05:30]} 23. dxe4 {[%emt 0:00:30]} Qc6 {[%emt 0:03:30]} 24. Qg3 {[%emt 0:13:30]} g6 {[%emt 0:05:30]} 25. Bb1 {[%emt 0:28:51]} gxf5 {[%emt 0:10:19]} 26. Nxf5 {[%emt 0:00:05]} Bc8 {[%emt 0:03:11]} 27. Bxh6 {[%emt 0:03:12]} Bxf5 {[%emt 0:01:14]} 28. Bxf8 {[%emt 0:00:07]} Rxf8 {[%emt 0:01:58]} 29. exf5 {[%emt 0:00:40]} Rad8 {[%emt 0:01:52]} 30. Qxe5 {[%emt 0:05:03]} Rfe8 {[%emt 0:01:56]} 31. Qf4 {[%emt 0:00:52]} Rxe1+ {[%emt 0:01:40]} 32. Rxe1 {[%emt 0:00:12]} Qd6 {[%emt 0:00:00]} 33. Qh4+ {[%emt 0:00:52]} Kg7 {[%emt 0:00:30]} 34. h3 {[%emt 0:01:37]} Qd2 {[%emt 0:01:32]} 35. Re3 {[%emt 0:00:48]} Qd1+ {[%emt 0:00:39]} 36. Kh2 {[%emt 0:00:05]} Qd6+ {[%emt 0:00:36]} 37. f4 {[%emt 0:02:36]} Rh8 {[%emt 0:00:22]} 38. Rg3+ {[%emt 0:00:16]} 1-0

[Event "ESTCC 65 2019"]
[Site "Mali Losinj"]
[Date "2019.09.19"]
[Round "2.4"]
[White "Illi, Hans-Joerg"]
[Black "Zhelnin, Vladimir V"]
[Result "0-1"]
[ECO "A48"]
[WhiteElo "1987"]
[BlackElo "2406"]
[Annotator "NA"]
[PlyCount "80"]
[EventDate "2019.09.18"]
[EventType "team-tourn"]
[EventCountry "CRO"]
[SourceTitle "playchess.com"]
[Source "ChessBase"]
[SourceQuality "1"]
[WhiteTeam "Switzerland"]
[BlackTeam "Russia"]
[WhiteTeamCountry "SUI"]
[BlackTeamCountry "RUS"]
[TimeControl "40/5400+30:1800+30"]

1. d4 {[%emt 0:00:30]} g6 {[%emt 0:00:30]} 2. Nf3 {[%emt 0:00:30]} Bg7 {[%emt 0:00:30]} 3. c3 {[%emt 0:01:30]} Nf6 {[%emt 0:07:30]} 4. Bg5 {[%emt 0:02:30]} O-O {[%emt 0:01:30]} 5. Nbd2 {[%emt 0:01:30]} d6 {[%emt 0:00:30]} 6. e4 {[%emt 0:00:30]} Qe8 {[%emt 0:00:30]} 7. Bc4 {[%emt 0:01:30]} e5 {[%emt 0:01:30]} 8. O-O {[%emt 0:04:30]} h6 {[%emt 0:03:30]} 9. Bh4 {[%emt 0:03:30]} Nbd7 {[%emt 0:00:00]} 10. Re1 {[%emt 0:02:30]} Nh5 {[%emt 0:02:00]} 11. Bb3 {[%emt 0:02:30]} Bf6 {[%emt 0:15:30]} 12. Bxf6 {[%emt 0:05:30]} Nhxf6 {[%emt 0:00:00]} 13. Qc2 {[%emt 0:10:30]} Kg7 {[%emt 0:14:00]} 14. Rad1 {[%emt 0:08:30]} Qe7 {[%emt 0:08:30]} 15. dxe5 {[%emt 0:13:30]} Nxe5 {[%emt 0:05:30]} 16. Nxe5 {[%emt 0:02:30]} dxe5 {[%emt 0:00:30]} 17. Nf1 {[%emt 0:02:30]} Be6 {[%emt 0:03:30]} 18. Bxe6 {[%emt 0:04:30]} Qxe6 {[%emt 0:00:00]} 19. a3 {[%emt 0:02:30]} Rad8 {[%emt 0:05:00]} 20. f3 {[%emt 0:08:56]} a5 {[%emt 0:01:30]} 21. Ne3 {[%emt 0:03:52]} h5 {[%emt 0:06:30]} 22. h4 {[%emt 0:00:52]} Qe7 {[%emt 0:04:33]} 23. g3 {[%emt 0:03:21]} c6 {[%emt 0:01:21]} 24. a4 {[%emt 0:00:16]} Rfe8 {[%emt 0:03:26]} 25. Kf2 {[%emt 0:00:44]} Nd7 {[%emt 0:04:37]} 26. Rd2 {[%emt 0:00:51]} Nc5 {[%emt 0:00:25]} 27. Red1 {[%emt 0:01:43]} Rxd2+ {[%emt 0:00:59]} 28. Rxd2 {[%emt 0:00:36]} Qe6 {[%emt 0:01:41]} 29. b4 {[%emt 0:00:51]} axb4 {[%emt 0:00:14]} 30. cxb4 {[%emt 0:00:38]} Nb3 {[%emt 0:00:09]} 31. Rd1 {[%emt 0:01:33]} Nd4 {[%emt 0:00:14]} 32. Qc4 {[%emt 0:02:03]} Qf6 {[%emt 0:00:46]} 33. f4 {[%emt 0:00:11]} Ne6 {[%emt 0:00:51]} 34. f5 {[%emt 0:01:09]} Nd4 {[%emt 0:00:44]} 35. Qd3 {[%emt 0:00:20]} Rd8 {[%emt 0:03:28]} 36. Kg2 {[%emt 0:00:19]} g5 {[%emt 0:01:22]} 37. Kh3 {[%emt 0:02:46]} gxh4 {[%emt 0:00:52]} 38. gxh4 {[%emt 0:00:17]} Ne6 {[%emt 0:01:03]} 39. Rg1+ {[%emt 0:03:41]} Kh7 {[%emt 0:00:14]} 40. Qf1 {[%emt 0:00:35]} Nf4+ {[%emt 0:00:39]} 0-1

[Event "ESTCC 65 2019"]
[Site "Mali Losinj"]
[Date "2019.09.19"]
[Round "2.5"]
[White "Rooze, Jan"]
[Black "Renman, Nils-Gustaf"]
[Result "0-1"]
[ECO "D45"]
[WhiteElo "2281"]
[BlackElo "2340"]
[Annotator "NA"]
[PlyCount "62"]
[EventDate "2019.09.18"]
[EventType "team-tourn"]
[EventCountry "CRO"]
[SourceTitle "playchess.com"]
[Source "ChessBase"]
[SourceQuality "1"]
[WhiteTeam "Belgium"]
[BlackTeam "Sweden"]
[WhiteTeamCountry "BEL"]
[BlackTeamCountry "SWE"]
[TimeControl "40/5400+30:1800+30"]

1. c4 {[%emt 0:00:30]} c6 {[%emt 0:02:30]} 2. Nf3 {[%emt 0:00:30]} d5 {[%emt 0:00:00]} 3. e3 {[%emt 0:00:00]} Nf6 {[%emt 0:00:00]} 4. Nc3 {[%emt 0:00:00]} e6 {[%emt 0:00:30]} 5. b3 {[%emt 0:01:30]} Nbd7 {[%emt 0:00:00]} 6. Bb2 {[%emt 0:00:30]} Bd6 {[%emt 0:01:00]} 7. Qc2 {[%emt 0:05:30]} O-O {[%emt 0:04:30]} 8. Be2 {[%emt 0:00:30]} a6 {[%emt 0:03:30]} 9. d4 {[%emt 0:03:30]} Qe7 {[%emt 0:04:30]} 10. Rd1 {[%emt 0:13:30]} dxc4 {[%emt 0:03:30]} 11. bxc4 {[%emt 0:15:30]} e5 {[%emt 0:00:30]} 12. O-O {[%emt 0:01:30]} e4 {[%emt 0:04:30]} 13. Nd2 {[%emt 0:06:30]} Re8 {[%emt 0:00:00]} 14. Rfe1 {[%emt 0:00:30]} Nf8 {[%emt 0:02:00]} 15. Nf1 {[%emt 0:00:30]} Bf5 {[%emt 0:04:30]} 16. Ng3 {[%emt 0:08:30]} Bg6 {[%emt 0:00:00]} 17. Rb1 {[%emt 0:06:30]} h5 {[%emt 0:03:00]} 18. h3 {[%emt 0:13:33]} h4 {[%emt 0:04:30]} 19. Nf1 {[%emt 0:00:27]} N8h7 {[%emt 0:00:30]} 20. c5 {[%emt 0:04:51]} Bc7 {[%emt 0:02:30]} 21. Bc4 {[%emt 0:00:26]} Kh8 {[%emt 0:13:30]} 22. Ba3 {[%emt 0:00:34]} Rab8 {[%emt 0:05:30]} 23. d5 {[%emt 0:01:25]} cxd5 {[%emt 0:00:30]} 24. Nxd5 {[%emt 0:00:18]} Nxd5 {[%emt 0:00:30]} 25. Bxd5 {[%emt 0:05:45]} Ng5 {[%emt 0:07:30]} 26. Qe2 {[%emt 0:00:30]} Nf3+ {[%emt 0:12:30]} 27. gxf3 {[%emt 0:03:25]} Qg5+ {[%emt 0:00:30]} 28. Kh1 {[%emt 0:00:08]} Qxd5 {[%emt 0:00:00]} 29. f4 {[%emt 0:00:18]} Bh5 {[%emt 0:01:00]} 30. Qd2 {[%emt 0:02:53]} Bf3+ {[%emt 0:00:30]} 31. Kg1 {[%emt 0:00:05]} Qf5 {[%emt 0:00:30]} 0-1

[Event "ESTCC 65 2019"]
[Site "Mali Losinj"]
[Date "2019.09.19"]
[Round "2.6"]
[White "Wahlbom, Magnus"]
[Black "Van Herck, Marcel"]
[Result "0-1"]
[ECO "C63"]
[WhiteElo "2255"]
[BlackElo "2088"]
[Annotator "NA"]
[PlyCount "77"]
[EventDate "2019.09.18"]
[EventType "team-tourn"]
[EventCountry "CRO"]
[SourceTitle "playchess.com"]
[Source "ChessBase"]
[SourceQuality "1"]
[WhiteTeam "Sweden"]
[BlackTeam "Belgium"]
[WhiteTeamCountry "SWE"]
[BlackTeamCountry "BEL"]
[TimeControl "40/5400+30:1800+30"]

1. e4 {[%emt 0:00:30]} e5 {[%emt 0:03:30]} 2. Nf3 {[%emt 0:00:00]} Nc6 {[%emt 0:00:30]} 3. Bb5 {[%emt 0:00:00]} f5 {[%emt 0:00:30]} 4. Nc3 {[%emt 0:02:30]} fxe4 {[%emt 0:00:30]} 5. Nxe4 {[%emt 0:00:00]} Nf6 {[%emt 0:04:30]} 6. Nxf6+ {[%emt 0:02:00]} Qxf6 {[%emt 0:04:30]} 7. Qe2 {[%emt 0:01:30]} Be7 {[%emt 0:03:30]} 8. Bxc6 {[%emt 0:14:30]} bxc6 {[%emt 0:05:30]} 9. Nxe5 {[%emt 0:03:30]} O-O {[%emt 0:00:30]} 10. O-O {[%emt 0:01:30]} Bd6 {[%emt 0:13:30]} 11. f4 {[%emt 0:25:30]} Bc5+ {[%emt 0:12:30]} 12. Kh1 {[%emt 0:01:30]} d6 {[%emt 0:00:30]} 13. Nxc6 {[%emt 0:07:30]} Bb7 {[%emt 0:03:30]} 14. Qc4+ {[%emt 0:13:30]} Qf7 {[%emt 0:01:30]} 15. Qxf7+ {[%emt 0:01:30]} Rxf7 {[%emt 0:00:30]} 16. Na5 {[%emt 0:00:30]} Ba6 {[%emt 0:03:30]} 17. d3 {[%emt 0:00:00]} Re8 {[%emt 0:01:30]} 18. Bd2 {[%emt 0:02:00]} Re2 {[%emt 0:00:30]} 19. Rad1 {[%emt 0:02:18]} Bb6 {[%emt 0:00:30]} 20. Rfe1 {[%emt 0:07:47]} Rxd2 {[%emt 0:01:30]} 21. Re8+ {[%emt 0:00:08]} Rf8 {[%emt 0:00:00]} 22. Rxf8+ {[%emt 0:00:09]} Kxf8 {[%emt 0:00:00]} 23. Rxd2 {[%emt 0:00:02]} Bxa5 {[%emt 0:00:00]} 24. c3 {[%emt 0:00:18]} c6 {[%emt 0:03:00]} 25. g3 {[%emt 0:01:21]} Bd8 {[%emt 0:01:30]} 26. Kg2 {[%emt 0:00:37]} Bf6 {[%emt 0:00:30]} 27. g4 {[%emt 0:01:50]} h6 {[%emt 0:02:30]} 28. Kg3 {[%emt 0:02:49]} Bc8 {[%emt 0:03:30]} 29. Re2 {[%emt 0:01:48]} d5 {[%emt 0:03:30]} 30. h3 {[%emt 0:02:17]} Kf7 {[%emt 0:01:30]} 31. h4 {[%emt 0:01:14]} g6 {[%emt 0:03:30]} 32. Re1 {[%emt 0:02:36]} h5 {[%emt 0:05:12]} 33. g5 {[%emt 0:00:24]} Bg7 {[%emt 0:00:10]} 34. d4 {[%emt 0:00:58]} Bf5 {[%emt 0:00:33]} 35. Kf3 {[%emt 0:00:51]} Bf8 {[%emt 0:01:25]} 36. Ke3 {[%emt 0:00:45]} Bd6 {[%emt 0:01:19]} 37. b4 {[%emt 0:00:58]} Be4 {[%emt 0:00:00]} 38. a4 {[%emt 0:00:00]} a6 {[%emt 0:00:00]} 39. b5 {[%emt 0:00:00]} 0-1

[Event "ESTCC 65 2019"]
[Site "Mali Losinj"]
[Date "2019.09.19"]
[Round "2.7"]
[White "Van de Wynkele, Herman"]
[Black "Hammar, Bengt"]
[Result "0-1"]
[ECO "B96"]
[WhiteElo "2085"]
[BlackElo "2161"]
[Annotator "NA"]
[PlyCount "49"]
[EventDate "2019.09.18"]
[EventType "team-tourn"]
[EventCountry "CRO"]
[SourceTitle "playchess.com"]
[Source "ChessBase"]
[SourceQuality "1"]
[WhiteTeam "Belgium"]
[BlackTeam "Sweden"]
[WhiteTeamCountry "BEL"]
[BlackTeamCountry "SWE"]
[TimeControl "40/5400+30:1800+30"]

1. e4 {[%emt 0:00:30]} c5 {[%emt 0:00:30]} 2. Nf3 {[%emt 0:00:00]} d6 {[%emt 0:01:30]} 3. d4 {[%emt 0:00:00]} cxd4 {[%emt 0:00:00]} 4. Nxd4 {[%emt 0:00:30]} Nf6 {[%emt 0:00:00]} 5. Nc3 {[%emt 0:00:00]} a6 {[%emt 0:00:30]} 6. Bg5 {[%emt 0:00:00]} Nbd7 {[%emt 0:01:30]} 7. Qe2 {[%emt 0:02:30]} e6 {[%emt 0:00:30]} 8. O-O-O {[%emt 0:01:30]} Qc7 {[%emt 0:02:30]} 9. f4 {[%emt 0:01:30]} b5 {[%emt 0:02:30]} 10. Bxf6 {[%emt 0:18:30]} Nxf6 {[%emt 0:01:30]} 11. a3 {[%emt 0:22:30]} Rb8 {[%emt 0:09:30]} 12. g4 {[%emt 0:01:30]} Be7 {[%emt 0:02:30]} 13. Bg2 {[%emt 0:00:30]} b4 {[%emt 0:07:30]} 14. axb4 {[%emt 0:00:30]} Rxb4 {[%emt 0:00:30]} 15. h4 {[%emt 0:13:30]} Qb6 {[%emt 0:05:30]} 16. e5 {[%emt 0:10:30]} Rxd4 {[%emt 0:02:30]} 17. Rxd4 {[%emt 0:06:12]} Qxd4 {[%emt 0:00:30]} 18. exf6 {[%emt 0:00:16]} Qxf4+ {[%emt 0:00:30]} 19. Kb1 {[%emt 0:00:07]} Bxf6 {[%emt 0:00:30]} 20. Bc6+ {[%emt 0:02:30]} Kd8 {[%emt 0:03:30]} 21. Ne4 {[%emt 0:07:57]} d5 {[%emt 0:05:30]} 22. Rd1 {[%emt 0:04:19]} Kc7 {[%emt 0:12:30]} 23. Bxd5 {[%emt 0:01:21]} exd5 {[%emt 0:00:30]} 24. Rxd5 {[%emt 0:00:02]} Bb7 {[%emt 0:00:00]} 25. Nxf6 {[%emt 0:00:00]} 0-1

[Event "ESTCC 65 2019"]
[Site "Mali Losinj"]
[Date "2019.09.19"]
[Round "2.8"]
[White "Friberg, Hans"]
[Black "Schrickx, Frank"]
[Result "1-0"]
[ECO "A09"]
[WhiteElo "2119"]
[BlackElo "1813"]
[Annotator "NA"]
[PlyCount "59"]
[EventDate "2019.09.18"]
[EventType "team-tourn"]
[EventCountry "CRO"]
[SourceTitle "playchess.com"]
[Source "ChessBase"]
[SourceQuality "1"]
[WhiteTeam "Sweden"]
[BlackTeam "Belgium"]
[WhiteTeamCountry "SWE"]
[BlackTeamCountry "BEL"]
[TimeControl "40/5400+30:1800+30"]

1. Nf3 {[%emt 0:00:30]} d5 {[%emt 0:00:30]} 2. c4 {[%emt 0:00:30]} dxc4 {[%emt 0:00:30]} 3. Qa4+ {[%emt 0:01:30]} Bd7 {[%emt 0:01:30]} 4. Qxc4 {[%emt 0:00:30]} Bc6 {[%emt 0:01:30]} 5. Nc3 {[%emt 0:02:30]} e6 {[%emt 0:03:30]} 6. d4 {[%emt 0:29:30]} Nf6 {[%emt 0:15:30]} 7. Bg5 {[%emt 0:02:30]} Bxf3 {[%emt 0:01:30]} 8. gxf3 {[%emt 0:01:30]} c6 {[%emt 0:01:30]} 9. e4 {[%emt 0:05:30]} Qa5 {[%emt 0:06:30]} 10. Bd2 {[%emt 0:00:30]} Bb4 {[%emt 0:04:30]} 11. a3 {[%emt 0:03:30]} Bxc3 {[%emt 0:00:30]} 12. Qxc3 {[%emt 0:01:30]} Qxc3 {[%emt 0:01:30]} 13. bxc3 {[%emt 0:00:30]} Nbd7 {[%emt 0:01:30]} 14. Rg1 {[%emt 0:06:30]} g6 {[%emt 0:01:30]} 15. Bh6 {[%emt 0:00:30]} Rg8 {[%emt 0:01:30]} 16. Rb1 {[%emt 0:04:30]} O-O-O {[%emt 0:04:30]} 17. a4 {[%emt 0:03:30]} e5 {[%emt 0:07:30]} 18. Bc4 {[%emt 0:03:30]} exd4 {[%emt 0:01:30]} 19. cxd4 {[%emt 0:03:30]} Nb6 {[%emt 0:01:30]} 20. Bxf7 {[%emt 0:00:30]} Rxd4 {[%emt 0:07:30]} 21. a5 {[%emt 0:04:30]} Nbd7 {[%emt 0:02:30]} 22. Bxg8 {[%emt 0:01:30]} Nxg8 {[%emt 0:00:00]} 23. Be3 {[%emt 0:00:30]} Ra4 {[%emt 0:01:00]} 24. Bxa7 {[%emt 0:00:30]} Rxa5 {[%emt 0:00:30]} 25. Bd4 {[%emt 0:00:00]} c5 {[%emt 0:01:30]} 26. Ra1 {[%emt 0:03:00]} Rb5 {[%emt 0:00:30]} 27. Bc3 {[%emt 0:00:30]} Ne7 {[%emt 0:01:30]} 28. Kd2 {[%emt 0:00:34]} c4 {[%emt 0:01:30]} 29. Ra4 {[%emt 0:03:15]} Nb6 {[%emt 0:03:30]} 30. Rb4 {[%emt 0:00:00]} 1-0

[Event "ESTCC 65 2019"]
[Site "Mali Losinj"]
[Date "2019.09.19"]
[Round "2.9"]
[White "Rantanen, Yrjo A."]
[Black "Quinn, John M"]
[Result "1-0"]
[ECO "B40"]
[WhiteElo "2309"]
[BlackElo "2105"]
[Annotator "RC"]
[PlyCount "103"]
[EventDate "2019.09.18"]
[EventType "team-tourn"]
[EventCountry "CRO"]
[SourceTitle "playchess.com"]
[Source "ChessBase"]
[SourceQuality "1"]
[WhiteTeam "Finland"]
[BlackTeam "England"]
[WhiteTeamCountry "FIN"]
[BlackTeamCountry "ENG"]
[TimeControl "40/5400+30:1800+30"]

1. e4 {[%emt 0:00:30]} c5 {[%emt 0:00:30]} 2. Nf3 {[%emt 0:00:00]} e6 {[%emt 0:00:00]} 3. c3 {[%emt 0:00:00]} d5 {[%emt 0:00:00]} 4. e5 {[%emt 0:00:30]} d4 {[%emt 0:00:30]} 5. Bd3 {[%emt 0:00:00]} Bd7 {[%emt 0:00:00]} 6. O-O {[%emt 0:00:00]} Bc6 {[%emt 0:01:00]} 7. Re1 {[%emt 0:02:30]} Ne7 {[%emt 0:01:30]} 8. b4 {[%emt 0:10:30]} cxb4 {[%emt 0:11:30]} 9. Nxd4 {[%emt 0:03:30]} Ng6 {[%emt 0:01:30]} 10. Qg4 {[%emt 0:03:30]} Qd5 {[%emt 0:22:30]} 11. Qg3 {[%emt 0:08:30]} Be7 {[%emt 0:08:30]} 12. Be4 {[%emt 0:15:30]} Qd7 {[%emt 0:02:30]} 13. Nxc6 {[%emt 0:05:30]} Nxc6 {[%emt 0:00:30]} 14. cxb4 {[%emt 0:02:30]} Ncxe5 {[%emt 0:15:30]} 15. Bb2 {[%emt 0:05:30]} Bd6 {[%emt 0:06:30]} 16. Qb3 {[%emt 0:05:30]} O-O {[%emt 0:03:30]} 17. g3 {[%emt 0:01:30]} Rac8 {[%emt 0:01:30]} 18. d3 {[%emt 0:05:30]} f5 {[%emt 0:07:52]} 19. Bg2 {[%emt 0:04:30]} Rfe8 {[%emt 0:00:43]} 20. Nd2 {[%emt 0:02:30]} Qb5 {[%emt 0:02:54]} 21. d4 {[%emt 0:02:30]} Nc4 {[%emt 0:00:47]} 22. Nxc4 {[%emt 0:02:42]} Qxc4 {[%emt 0:00:23]} 23. Qxc4 {[%emt 0:01:08]} Rxc4 {[%emt 0:00:04]} 24. Rxe6 {[%emt 0:00:12]} Rxe6 {[%emt 0:00:59]} 25. Bd5 {[%emt 0:00:00]} Rxb4 {[%emt 0:02:00]} 26. Bxe6+ {[%emt 0:00:32]} Kf8 {[%emt 0:00:13]} 27. Bc3 {[%emt 0:00:22]} Ra4 {[%emt 0:02:36]} 28. Bxf5 {[%emt 0:03:45]} Ne7 {[%emt 0:02:20]} 29. Be6 {[%emt 0:01:03]} b5 {[%emt 0:01:17]} 30. Bb3 {[%emt 0:06:49]} Ra6 {[%emt 0:00:25]} 31. Re1 {[%emt 0:01:52]} b4 {[%emt 0:03:13]} 32. Bb2 {[%emt 0:02:14]} Rb6 {[%emt 0:00:23]} 33. Re3 {[%emt 0:00:26]} Ng8 {[%emt 0:01:01]} 34. Rf3+ {[%emt 0:01:54]} Nf6 {[%emt 0:00:05]} 35. g4 {[%emt 0:00:10]} h6 {[%emt 0:00:03]} 36. h4 {[%emt 0:00:01]} Ke8 {[%emt 0:00:28]} 37. g5 {[%emt 0:00:11]} hxg5 {[%emt 0:01:05]} 38. hxg5 {[%emt 0:00:02]} Nh7 {[%emt 0:01:20]} 39. Bc1 {[%emt 0:00:11]} Be7 {[%emt 0:00:31]} 40. Rf5 {[%emt 0:00:21]} Kd8 {[%emt 0:00:59]} 41. f4 {[%emt 0:01:05]} Nf8 {[%emt 0:04:19]} 42. Rd5+ {[%emt 0:03:30]} Kc7 {[%emt 0:02:30]} 43. f5 {[%emt 0:01:30]} Bd6 {[%emt 0:03:30]} 44. Kf2 {[%emt 0:03:30]} Nd7 {[%emt 0:03:43]} 45. Bd2 {[%emt 0:04:30]} Rb7 {[%emt 0:05:48]} 46. Kf3 {[%emt 0:04:30]} Kc6 {[%emt 0:05:14]} 47. Kg4 {[%emt 0:01:30]} Nb6 {[%emt 0:00:31]} 48. Re5 {[%emt 0:10:54]} Bxe5 {[%emt 0:02:47]} 49. dxe5 {[%emt 0:00:09]} Rd7 {[%emt 0:00:14]} 50. Bf4 {[%emt 0:00:44]} Rd4 {[%emt 0:00:17]} 51. f6 {[%emt 0:00:39]} gxf6 {[%emt 0:01:01]} 52. exf6 {[%emt 0:00:31]} 1-0